[Event "*** Titled Tuesday Blitz"]
[Site "Chess.com"]
[Date "2021.04.27"]
[Round "3"]
[White "SilviusTiberius"]
[Black "c_r_e_e_p_e_r"]
[Result "1-0"]
[WhiteElo "2604"]
[BlackElo "2398"]
[TimeControl "180+1"]
[EndTime "10:27:50 PDT"]
[Termination "SilviusTiberius won by checkmate"]

1. e4 {[%clk 0:03:00.9]} 1... c5 {[%clk 0:02:58.8]} 2. Nf3 {[%clk 0:03:00.5]}
2... e6 {[%clk 0:02:59.2]} 3. d4 {[%clk 0:03:00.9]} 3... cxd4 {[%clk 0:02:59.9]}
4. Nxd4 {[%clk 0:03:01.4]} 4... Nf6 {[%clk 0:03:00.7]} 5. Nc3 {[%clk 0:03:00.9]}
5... Nc6 {[%clk 0:03:01.4]} 6. Nxc6 {[%clk 0:03:00.3]} 6... bxc6 {[%clk
0:03:01.5]} 7. e5 {[%clk 0:03:01.2]} 7... Nd5 {[%clk 0:03:01.3]} 8. Ne4 {[%clk
0:03:01.7]} 8... Qc7 {[%clk 0:03:01.3]} 9. f4 {[%clk 0:03:02.1]} 9... Rb8 {[%clk
0:03:02]} 10. a3 {[%clk 0:02:53.2]} 10... Ba6 {[%clk 0:02:43.5]} 11. c4 {[%clk
0:02:46.7]} 11... Nb6 {[%clk 0:02:21.6]} 12. Nd6+ {[%clk 0:02:34.9]} 12... Bxd6
{[%clk 0:02:20.6]} 13. exd6 {[%clk 0:02:35.8]} 13... Qd8 {[%clk 0:02:16.2]} 14.
Qd4 {[%clk 0:02:27.1]} 14... O-O {[%clk 0:02:13.2]} 15. b4 {[%clk 0:02:12]}
15... c5 {[%clk 0:02:13.1]} 16. bxc5 {[%clk 0:02:07.5]} 16... Na4 {[%clk
0:02:13.6]} 17. Bd3 {[%clk 0:02:06.5]} 17... Qa5+ {[%clk 0:01:56]} 18. Bd2
{[%clk 0:01:31.4]} 18... Qxc5 {[%clk 0:01:56.1]} 19. Qe4 {[%clk 0:01:09.7]}
19... f5 {[%clk 0:01:52.4]} 20. Qe5 {[%clk 0:01:09.7]} 20... Qc6 {[%clk
0:01:47.9]} 21. O-O {[%clk 0:01:05.8]} 21... Rb2 {[%clk 0:01:39.6]} 22. Rf2
{[%clk 0:01:02.8]} 22... Bxc4 {[%clk 0:01:31.5]} 23. Rc1 {[%clk 0:00:56.9]}
23... Rxd2 {[%clk 0:01:07]} 24. Rxd2 {[%clk 0:00:41.7]} 24... Qb6+ {[%clk
0:01:07.3]} 25. Kh1 {[%clk 0:00:36.4]} 25... Bd5 {[%clk 0:00:54.9]} 26. Rdc2
{[%clk 0:00:36.4]} 26... Qb7 {[%clk 0:00:49.2]} 27. Bf1 {[%clk 0:00:33.7]} 27...
Nb6 {[%clk 0:00:25.4]} 28. Rc7 {[%clk 0:00:31.6]} 28... Qa8 {[%clk 0:00:25.9]}
29. R1c3 {[%clk 0:00:31]} 29... Rf7 {[%clk 0:00:10.1]} 30. a4 {[%clk 0:00:31.3]}
30... Rf8 {[%clk 0:00:05.3]} 31. a5 {[%clk 0:00:30.8]} 31... Na4 {[%clk
0:00:05.2]} 32. Rxd7 {[%clk 0:00:30.1]} 32... Rf7 {[%clk 0:00:04]} 33. Rxf7
{[%clk 0:00:29.4]} 33... Kxf7 {[%clk 0:00:04]} 34. Rc7+ {[%clk 0:00:29.9]} 34...
Kg6 {[%clk 0:00:02.7]} 35. Qxg7+ {[%clk 0:00:29.8]} 35... Kh5 {[%clk 0:00:03.1]}
36. Qg5# {[%clk 0:00:30.3]} 1-0

[Event "*** Titled Tuesday Blitz"]
[Site "Chess.com"]
[Date "2021.04.27"]
[Round "3"]
[White "dosto07"]
[Black "salomez"]
[Result "1-0"]
[WhiteElo "2312"]
[BlackElo "2107"]
[TimeControl "180+1"]
[EndTime "10:27:51 PDT"]
[Termination "dosto07 won by resignation"]

1. e4 {[%clk 0:03:00.9]} 1... c5 {[%clk 0:02:44.6]} 2. Nf3 {[%clk 0:03:00.2]}
2... e6 {[%clk 0:02:44.3]} 3. c3 {[%clk 0:02:58.6]} 3... Nf6 {[%clk 0:02:42.1]}
4. e5 {[%clk 0:02:58.5]} 4... Nd5 {[%clk 0:02:42]} 5. Bc4 {[%clk 0:02:59]} 5...
d6 {[%clk 0:02:38.3]} 6. d4 {[%clk 0:02:57.8]} 6... cxd4 {[%clk 0:02:37]} 7.
cxd4 {[%clk 0:02:57.6]} 7... Be7 {[%clk 0:02:35]} 8. O-O {[%clk 0:02:56.9]} 8...
O-O {[%clk 0:02:35]} 9. Qe2 {[%clk 0:02:55.9]} 9... Nc6 {[%clk 0:02:34.1]} 10.
Rd1 {[%clk 0:02:53.9]} 10... Bd7 {[%clk 0:02:31.2]} 11. Bxd5 {[%clk 0:02:52.4]}
11... exd5 {[%clk 0:02:31.2]} 12. Nc3 {[%clk 0:02:52.9]} 12... Be6 {[%clk
0:02:29]} 13. Bf4 {[%clk 0:02:51.6]} 13... Rc8 {[%clk 0:02:26.5]} 14. exd6
{[%clk 0:02:43.1]} 14... Bxd6 {[%clk 0:02:26.6]} 15. Bxd6 {[%clk 0:02:43]} 15...
Qxd6 {[%clk 0:02:27.5]} 16. Ne5 {[%clk 0:02:35.7]} 16... Rfe8 {[%clk 0:02:21]}
17. Nxc6 {[%clk 0:02:32.3]} 17... Rxc6 {[%clk 0:02:16.2]} 18. Qd2 {[%clk
0:02:28.5]} 18... a6 {[%clk 0:02:08.5]} 19. Re1 {[%clk 0:02:26.9]} 19... b5
{[%clk 0:02:07.1]} 20. h3 {[%clk 0:02:21.6]} 20... h6 {[%clk 0:02:06.7]} 21. Re3
{[%clk 0:02:18.7]} 21... Rec8 {[%clk 0:02:06.8]} 22. a3 {[%clk 0:02:16.5]} 22...
b4 {[%clk 0:02:06.2]} 23. axb4 {[%clk 0:02:14.2]} 23... Qxb4 {[%clk 0:02:06.1]}
24. Rae1 {[%clk 0:02:05.2]} 24... a5 {[%clk 0:02:02.5]} 25. Rg3 {[%clk
0:01:58.2]} 25... Kh8 {[%clk 0:01:53.9]} 26. Re5 {[%clk 0:01:42.7]} 26... Rc4
{[%clk 0:01:40.8]} 27. Rh5 {[%clk 0:01:38.2]} 27... Qf8 {[%clk 0:01:27.7]} 28.
Nxd5 {[%clk 0:01:26.9]} 28... Rc1+ {[%clk 0:00:53.2]} 29. Kh2 {[%clk 0:01:26]}
29... R1c2 {[%clk 0:00:51.8]} 30. Qf4 {[%clk 0:01:10.3]} 30... Rxb2 {[%clk
0:00:45.8]} 31. Qe5 {[%clk 0:01:04.3]} 31... Kh7 {[%clk 0:00:21.8]} 32. Rxh6+
{[%clk 0:00:21.6]} 32... Kxh6 {[%clk 0:00:13.1]} 33. Qg5+ {[%clk 0:00:18.4]}
33... Kh7 {[%clk 0:00:12.5]} 34. Qh5+ {[%clk 0:00:18.4]} 1-0

[Event "*** Titled Tuesday Blitz"]
[Site "Chess.com"]
[Date "2021.04.27"]
[Round "3"]
[White "ExtremeLearner"]
[Black "IMRosen"]
[Result "0-1"]
[WhiteElo "2425"]
[BlackElo "2674"]
[TimeControl "180+1"]
[EndTime "10:27:53 PDT"]
[Termination "IMRosen won by resignation"]

1. d4 {[%clk 0:03:00.9]} 1... d5 {[%clk 0:02:59.1]} 2. Bf4 {[%clk 0:02:58.6]}
2... Nf6 {[%clk 0:02:58.4]} 3. e3 {[%clk 0:02:54.9]} 3... c5 {[%clk 0:02:59]} 4.
c3 {[%clk 0:02:54.9]} 4... Nc6 {[%clk 0:02:59.6]} 5. Nd2 {[%clk 0:02:55.4]} 5...
Bf5 {[%clk 0:02:58.6]} 6. Qb3 {[%clk 0:02:54.2]} 6... Qb6 {[%clk 0:02:57.4]} 7.
Qxb6 {[%clk 0:02:53.2]} 7... axb6 {[%clk 0:02:56.1]} 8. Bc7 {[%clk 0:02:53.4]}
8... Nd7 {[%clk 0:02:50.4]} 9. Bb5 {[%clk 0:02:46]} 9... e6 {[%clk 0:02:25.3]}
10. Ngf3 {[%clk 0:02:44.1]} 10... Be7 {[%clk 0:02:25.2]} 11. Ne5 {[%clk
0:02:29.7]} 11... Ndxe5 {[%clk 0:02:20.1]} 12. dxe5 {[%clk 0:02:26.5]} 12... Bd8
{[%clk 0:02:14.7]} 13. Bd6 {[%clk 0:02:22.8]} 13... Be7 {[%clk 0:02:05.3]} 14.
Bc7 {[%clk 0:02:11.3]} 14... Bd8 {[%clk 0:01:55.8]} 15. Bd6 {[%clk 0:02:05.5]}
15... f6 {[%clk 0:01:56.4]} 16. h3 {[%clk 0:01:43.8]} 16... Be7 {[%clk
0:01:55.6]} 17. Bc7 {[%clk 0:01:38]} 17... Bd8 {[%clk 0:01:55.9]} 18. Bd6 {[%clk
0:01:38]} 18... fxe5 {[%clk 0:01:51.1]} 19. Bxe5 {[%clk 0:01:36.8]} 19... Bf6
{[%clk 0:01:49.5]} 20. Bc7 {[%clk 0:01:34.3]} 20... Bd8 {[%clk 0:01:49.7]} 21.
Be5 {[%clk 0:01:33.5]} 21... O-O {[%clk 0:01:47.6]} 22. g4 {[%clk 0:01:31.9]}
22... Nxe5 {[%clk 0:01:36.4]} 23. gxf5 {[%clk 0:01:30.9]} 23... Rxf5 {[%clk
0:01:36.4]} 24. e4 {[%clk 0:01:25.2]} 24... Rf4 {[%clk 0:01:25.4]} 25. a4 {[%clk
0:01:12.5]} 25... Bh4 {[%clk 0:01:21.3]} 26. O-O-O {[%clk 0:00:57.8]} 26... dxe4
{[%clk 0:01:10.1]} 27. Nc4 {[%clk 0:00:57.8]} 27... Nd3+ {[%clk 0:01:09.5]} 28.
Rxd3 {[%clk 0:00:49.3]} 28... exd3 {[%clk 0:01:09.4]} 29. Nxb6 {[%clk
0:00:50.2]} 29... Rd8 {[%clk 0:01:07.2]} 30. Rd1 {[%clk 0:00:36.8]} 30... Bg5
{[%clk 0:00:51.4]} 31. Kb1 {[%clk 0:00:25.4]} 31... d2 {[%clk 0:00:51.6]} 32.
Bd7 {[%clk 0:00:24.9]} 32... Rxf2 {[%clk 0:00:47.4]} 33. Bxe6+ {[%clk
0:00:23.4]} 33... Kh8 {[%clk 0:00:46.2]} 34. Bd5 {[%clk 0:00:15.6]} 34... Rf6
{[%clk 0:00:40.8]} 35. a5 {[%clk 0:00:12.5]} 35... Rxb6 {[%clk 0:00:39.9]} 36.
axb6 {[%clk 0:00:12.5]} 36... Rxd5 {[%clk 0:00:40.2]} 37. Kc2 {[%clk 0:00:10.8]}
37... c4 {[%clk 0:00:37.8]} 38. Ra1 {[%clk 0:00:11.7]} 38... h5 {[%clk
0:00:36.6]} 39. Kd1 {[%clk 0:00:10.4]} 39... Rb5 {[%clk 0:00:35.9]} 40. Ra8+
{[%clk 0:00:10.2]} 40... Kh7 {[%clk 0:00:35.7]} 0-1

[Event "*** Titled Tuesday Blitz"]
[Site "Chess.com"]
[Date "2021.04.27"]
[Round "3"]
[White "ehrenfeld"]
[Black "UmbertoConcelli"]
[Result "1-0"]
[WhiteElo "2524"]
[BlackElo "2813"]
[TimeControl "180+1"]
[EndTime "10:27:55 PDT"]
[Termination "ehrenfeld won by resignation"]

1. e4 {[%clk 0:03:00.9]} 1... c5 {[%clk 0:02:59.3]} 2. Nf3 {[%clk 0:03:00.4]}
2... d6 {[%clk 0:02:57.6]} 3. Bc4 {[%clk 0:03:00]} 3... Nc6 {[%clk 0:02:53.8]}
4. c3 {[%clk 0:02:56]} 4... Nf6 {[%clk 0:02:53.4]} 5. d3 {[%clk 0:02:55.8]} 5...
e6 {[%clk 0:02:49.1]} 6. Bb3 {[%clk 0:02:55.2]} 6... Be7 {[%clk 0:02:44.8]} 7.
O-O {[%clk 0:02:54.9]} 7... O-O {[%clk 0:02:44.7]} 8. Re1 {[%clk 0:02:55]} 8...
b5 {[%clk 0:02:36.5]} 9. d4 {[%clk 0:02:54.9]} 9... cxd4 {[%clk 0:02:35.9]} 10.
cxd4 {[%clk 0:02:55]} 10... Bb7 {[%clk 0:02:36.3]} 11. Nc3 {[%clk 0:02:50.1]}
11... b4 {[%clk 0:02:35.2]} 12. Na4 {[%clk 0:02:37.8]} 12... Na5 {[%clk
0:02:32.3]} 13. Bc2 {[%clk 0:02:34.7]} 13... d5 {[%clk 0:02:29.8]} 14. e5 {[%clk
0:02:32.7]} 14... Ne4 {[%clk 0:02:29.3]} 15. Nd2 {[%clk 0:02:18.5]} 15... Nxd2
{[%clk 0:02:19.3]} 16. Bxd2 {[%clk 0:02:18]} 16... Rc8 {[%clk 0:02:13.6]} 17. b3
{[%clk 0:02:13.1]} 17... Ba6 {[%clk 0:02:10.4]} 18. Rc1 {[%clk 0:02:10.7]} 18...
Rc6 {[%clk 0:01:20.3]} 19. Qh5 {[%clk 0:02:08.2]} 19... g6 {[%clk 0:01:19.4]}
20. Qh6 {[%clk 0:02:04.4]} 20... Re8 {[%clk 0:01:19]} 21. Nc5 {[%clk 0:02:03.1]}
21... Bf8 {[%clk 0:01:16.5]} 22. Qh3 {[%clk 0:01:51.9]} 22... Nb7 {[%clk
0:01:11.7]} 23. Nxa6 {[%clk 0:01:37.6]} 23... Rxa6 {[%clk 0:01:12.6]} 24. Bb1
{[%clk 0:01:26.3]} 24... Na5 {[%clk 0:01:05.7]} 25. Bd3 {[%clk 0:01:11.9]} 25...
Rb6 {[%clk 0:01:04.9]} 26. Qg3 {[%clk 0:01:08.7]} 26... Nc6 {[%clk 0:01:02.7]}
27. Qf4 {[%clk 0:01:03.6]} 27... Qd7 {[%clk 0:00:46.3]} 28. h4 {[%clk
0:01:02.8]} 28... Rbb8 {[%clk 0:00:41.6]} 29. h5 {[%clk 0:01:01.7]} 29... Rec8
{[%clk 0:00:40.7]} 30. hxg6 {[%clk 0:00:59]} 30... hxg6 {[%clk 0:00:40.1]} 31.
g3 {[%clk 0:00:58.4]} 31... Ne7 {[%clk 0:00:37.5]} 32. Kg2 {[%clk 0:00:56.7]}
32... Nf5 {[%clk 0:00:34.2]} 33. Rh1 {[%clk 0:00:44.4]} 33... Rxc1 {[%clk
0:00:32.5]} 34. Bxc1 {[%clk 0:00:43.8]} 34... Bg7 {[%clk 0:00:29.5]} 35. g4
{[%clk 0:00:41.1]} 35... Ne7 {[%clk 0:00:26.9]} 36. Qh2 {[%clk 0:00:40.5]} 36...
Kf8 {[%clk 0:00:26.9]} 37. Bh6 {[%clk 0:00:36.8]} 37... Ng8 {[%clk 0:00:20.1]}
38. Bxg7+ {[%clk 0:00:35.9]} 38... Kxg7 {[%clk 0:00:21]} 39. Qh8+ {[%clk
0:00:35.3]} 39... Kf8 {[%clk 0:00:21.3]} 40. Rh7 {[%clk 0:00:34.4]} 40... Qe8
{[%clk 0:00:20.9]} 41. Bxg6 {[%clk 0:00:30.1]} 41... Rb7 {[%clk 0:00:18.6]} 42.
Qg7+ {[%clk 0:00:29]} 1-0

[Event "*** Titled Tuesday Blitz"]
[Site "Chess.com"]
[Date "2021.04.27"]
[Round "3"]
[White "noblerone"]
[Black "MIJuanReyesRosa"]
[Result "1-0"]
[WhiteElo "2384"]
[BlackElo "2023"]
[TimeControl "180+1"]
[EndTime "10:27:59 PDT"]
[Termination "noblerone won on time"]

1. d4 {[%clk 0:02:58.1]} 1... e6 {[%clk 0:02:59.4]} 2. Nf3 {[%clk 0:02:58.3]}
2... c5 {[%clk 0:02:58.4]} 3. c3 {[%clk 0:02:57.4]} 3... Nf6 {[%clk 0:02:55.5]}
4. Bg5 {[%clk 0:02:57]} 4... Be7 {[%clk 0:02:49.2]} 5. e3 {[%clk 0:02:56.8]}
5... h6 {[%clk 0:02:45]} 6. Bh4 {[%clk 0:02:56.2]} 6... Nc6 {[%clk 0:02:40.1]}
7. Bd3 {[%clk 0:02:54.6]} 7... Qb6 {[%clk 0:02:36.2]} 8. Qc2 {[%clk 0:02:41.6]}
8... O-O {[%clk 0:02:31]} 9. O-O {[%clk 0:02:39.8]} 9... d5 {[%clk 0:02:28.1]}
10. Nbd2 {[%clk 0:02:37.1]} 10... Bd7 {[%clk 0:02:13.2]} 11. Ne5 {[%clk
0:02:31.9]} 11... Rfd8 {[%clk 0:02:02]} 12. f4 {[%clk 0:02:03.5]} 12... Rac8
{[%clk 0:02:01]} 13. Qb3 {[%clk 0:01:48.7]} 13... cxd4 {[%clk 0:00:44]} 14. exd4
{[%clk 0:01:36.3]} 14... Na5 {[%clk 0:00:19.6]} 15. Qxb6 {[%clk 0:01:29.3]}
15... axb6 {[%clk 0:00:19.5]} 16. Nxd7 {[%clk 0:00:51.7]} 16... Rxd7 {[%clk
0:00:18.3]} 17. Bb5 {[%clk 0:00:51.6]} 17... Rdc7 {[%clk 0:00:16.4]} 18. Rae1
{[%clk 0:00:43.3]} 18... Nc4 {[%clk 0:00:15.7]} 19. Nxc4 {[%clk 0:00:33.9]}
19... dxc4 {[%clk 0:00:15]} 20. f5 {[%clk 0:00:34]} 20... exf5 {[%clk
0:00:13.8]} 21. Rxf5 {[%clk 0:00:34.9]} 21... Rd8 {[%clk 0:00:06.1]} 22. Bg3
{[%clk 0:00:30]} 22... Rcc8 {[%clk 0:00:04.3]} 23. a3 {[%clk 0:00:27.8]} 23...
Nd5 {[%clk 0:00:03]} 24. Ba4 {[%clk 0:00:22.5]} 24... Bf6 {[%clk 0:00:01.9]} 25.
Bc2 {[%clk 0:00:19]} 25... g6 {[%clk 0:00:01.5]} 26. Rff1 {[%clk 0:00:18.6]}
26... Kg7 {[%clk 0:00:01.3]} 27. h3 {[%clk 0:00:18.3]} 27... Re8 {[%clk
0:00:01.3]} 28. Bd6 {[%clk 0:00:16.5]} 1-0

[Event "*** Titled Tuesday Blitz"]
[Site "Chess.com"]
[Date "2021.04.27"]
[Round "3"]
[White "ajedrez1101"]
[Black "Pantata007"]
[Result "1/2-1/2"]
[WhiteElo "2159"]
[BlackElo "2322"]
[TimeControl "180+1"]
[EndTime "10:27:59 PDT"]
[Termination "Game drawn by repetition"]

1. b3 {[%clk 0:03:00.9]} 1... e5 {[%clk 0:02:59.4]} 2. Bb2 {[%clk 0:03:01.1]}
2... Nc6 {[%clk 0:02:59.7]} 3. e3 {[%clk 0:03:01.6]} 3... Nf6 {[%clk 0:03:00]}
4. Bb5 {[%clk 0:03:01.9]} 4... Bd6 {[%clk 0:03:00.4]} 5. Bxc6 {[%clk 0:03:00.7]}
5... dxc6 {[%clk 0:03:00.2]} 6. d3 {[%clk 0:03:00.9]} 6... O-O {[%clk
0:02:59.6]} 7. Nd2 {[%clk 0:03:01]} 7... Qe7 {[%clk 0:02:53.2]} 8. e4 {[%clk
0:02:54.7]} 8... Bg4 {[%clk 0:02:41.3]} 9. Ngf3 {[%clk 0:02:54.8]} 9... Nd7
{[%clk 0:02:32.3]} 10. h3 {[%clk 0:02:52.8]} 10... Bh5 {[%clk 0:02:29.6]} 11. g4
{[%clk 0:02:52.9]} 11... Bg6 {[%clk 0:02:29.4]} 12. O-O {[%clk 0:02:51.9]} 12...
h5 {[%clk 0:02:22.3]} 13. Nc4 {[%clk 0:02:39.2]} 13... hxg4 {[%clk 0:02:19.9]}
14. hxg4 {[%clk 0:02:40.1]} 14... Rfe8 {[%clk 0:02:04.4]} 15. Ne3 {[%clk
0:02:37.6]} 15... Nf8 {[%clk 0:01:57.6]} 16. Nf5 {[%clk 0:02:10.4]} 16... Bxf5
{[%clk 0:01:18.7]} 17. gxf5 {[%clk 0:02:10.2]} 17... g6 {[%clk 0:01:18.9]} 18.
Qd2 {[%clk 0:01:32.3]} 18... gxf5 {[%clk 0:01:02.5]} 19. Qh6 {[%clk 0:01:17.5]}
19... Qe6 {[%clk 0:00:54.6]} 20. Qg5+ {[%clk 0:01:13.8]} 20... Qg6 {[%clk
0:00:54.7]} 21. exf5 {[%clk 0:01:11.7]} 21... Qxg5+ {[%clk 0:00:54.4]} 22. Nxg5
{[%clk 0:01:12.6]} 22... f6 {[%clk 0:00:48.1]} 23. Ne4 {[%clk 0:01:09.8]} 23...
Kf7 {[%clk 0:00:47.8]} 24. Kg2 {[%clk 0:01:08.8]} 24... Nd7 {[%clk 0:00:46.6]}
25. Rh1 {[%clk 0:01:07.7]} 25... Rg8+ {[%clk 0:00:46.6]} 26. Kf3 {[%clk
0:01:08.1]} 26... Rg7 {[%clk 0:00:43.6]} 27. Rh6 {[%clk 0:01:08.3]} 27... Rag8
{[%clk 0:00:40.2]} 28. Rah1 {[%clk 0:01:08.7]} 28... Be7 {[%clk 0:00:38]} 29. a4
{[%clk 0:01:06.9]} 29... Nb6 {[%clk 0:00:28.6]} 30. Bc1 {[%clk 0:00:59.7]} 30...
Nd5 {[%clk 0:00:26.6]} 31. Bd2 {[%clk 0:00:59.9]} 31... b6 {[%clk 0:00:16.7]}
32. a5 {[%clk 0:00:50.5]} 32... c5 {[%clk 0:00:16.1]} 33. Rh7 {[%clk 0:00:41.9]}
33... Nb4 {[%clk 0:00:11.7]} 34. Bxb4 {[%clk 0:00:39.4]} 34... cxb4 {[%clk
0:00:12.6]} 35. a6 {[%clk 0:00:37.6]} 35... c5 {[%clk 0:00:11.2]} 36. Rxg7+
{[%clk 0:00:34.5]} 36... Rxg7 {[%clk 0:00:11]} 37. Rh8 {[%clk 0:00:34.8]} 37...
Bf8 {[%clk 0:00:10.2]} 38. Rh6 {[%clk 0:00:33.5]} 38... Be7 {[%clk 0:00:09.7]}
39. Rh8 {[%clk 0:00:33.6]} 39... Bf8 {[%clk 0:00:10]} 40. Ng3 {[%clk 0:00:33.1]}
40... Be7 {[%clk 0:00:08.2]} 41. Ne4 {[%clk 0:00:33]} 1/2-1/2

[Event "*** Titled Tuesday Blitz"]
[Site "Chess.com"]
[Date "2021.04.27"]
[Round "3"]
[White "Oleksandr_Bortnyk"]
[Black "MatyChess1"]
[Result "1-0"]
[WhiteElo "2963"]
[BlackElo "2673"]
[TimeControl "180+1"]
[EndTime "10:28:03 PDT"]
[Termination "Oleksandr_Bortnyk won by resignation"]

1. e4 {[%clk 0:03:00.9]} 1... c5 {[%clk 0:02:54.1]} 2. Nf3 {[%clk 0:03:00.1]}
2... d6 {[%clk 0:02:53.7]} 3. c3 {[%clk 0:03:00.6]} 3... Nf6 {[%clk 0:02:54]} 4.
h3 {[%clk 0:03:01.3]} 4... g6 {[%clk 0:02:53.2]} 5. Bd3 {[%clk 0:03:00.6]} 5...
Bg7 {[%clk 0:02:53.7]} 6. Bc2 {[%clk 0:03:01.2]} 6... O-O {[%clk 0:02:54.6]} 7.
d4 {[%clk 0:03:00.7]} 7... cxd4 {[%clk 0:02:51.6]} 8. cxd4 {[%clk 0:03:01.6]}
8... e5 {[%clk 0:02:52.1]} 9. O-O {[%clk 0:02:59.8]} 9... Nc6 {[%clk 0:02:51.5]}
10. d5 {[%clk 0:02:58.9]} 10... Nb4 {[%clk 0:02:51.6]} 11. Bb3 {[%clk
0:02:59.3]} 11... Nxe4 {[%clk 0:02:39.3]} 12. Qe1 {[%clk 0:02:54.8]} 12... Nd3
{[%clk 0:02:38.6]} 13. Qxe4 {[%clk 0:02:42.4]} 13... Bf5 {[%clk 0:02:39]} 14.
Qe2 {[%clk 0:02:40.5]} 14... e4 {[%clk 0:02:38.9]} 15. Nh2 {[%clk 0:01:59.4]}
15... Nxc1 {[%clk 0:02:36.6]} 16. Rxc1 {[%clk 0:01:57.8]} 16... Qg5 {[%clk
0:02:34.7]} 17. Nc3 {[%clk 0:01:53.3]} 17... Rfe8 {[%clk 0:01:54.6]} 18. Qe3
{[%clk 0:01:50.8]} 18... Qh4 {[%clk 0:01:50.7]} 19. Re1 {[%clk 0:01:17.6]} 19...
Bh6 {[%clk 0:01:45.7]} 20. Qg3 {[%clk 0:01:14.4]} 20... Qd8 {[%clk 0:01:33.6]}
21. Nb5 {[%clk 0:00:57.5]} 21... Bf8 {[%clk 0:01:28.9]} 22. Rac1 {[%clk
0:00:54.2]} 22... Rc8 {[%clk 0:01:20.3]} 23. Rxc8 {[%clk 0:00:53.4]} 23... Bxc8
{[%clk 0:01:21.2]} 24. Ng4 {[%clk 0:00:22.4]} 24... h5 {[%clk 0:01:14.2]} 25.
Ne3 {[%clk 0:00:20.7]} 25... Bg7 {[%clk 0:01:13.6]} 26. Qxd6 {[%clk 0:00:18.7]}
26... Qg5 {[%clk 0:01:07.6]} 27. Qg3 {[%clk 0:00:15.2]} 27... Qd8 {[%clk
0:01:04.3]} 28. Nc4 {[%clk 0:00:13.6]} 28... h4 {[%clk 0:00:37.6]} 29. Qf4
{[%clk 0:00:13.7]} 29... g5 {[%clk 0:00:26.7]} 30. Qc7 {[%clk 0:00:07.4]} 30...
Bd7 {[%clk 0:00:09]} 31. Qxd8 {[%clk 0:00:06.9]} 31... Rxd8 {[%clk 0:00:09.9]}
32. Nbd6 {[%clk 0:00:06.4]} 32... f5 {[%clk 0:00:10.5]} 33. Nxb7 {[%clk
0:00:06.3]} 33... Rb8 {[%clk 0:00:11.1]} 34. Nc5 {[%clk 0:00:06.6]} 34... Kf8
{[%clk 0:00:11.9]} 35. Nxd7+ {[%clk 0:00:06.9]} 1-0

[Event "*** Titled Tuesday Blitz"]
[Site "Chess.com"]
[Date "2021.04.27"]
[Round "3"]
[White "scandalgod"]
[Black "TeukkaSalama"]
[Result "1-0"]
[WhiteElo "2589"]
[BlackElo "2363"]
[TimeControl "180+1"]
[EndTime "10:28:03 PDT"]
[Termination "scandalgod won by resignation"]

1. d4 {[%clk 0:02:40.4]} 1... d5 {[%clk 0:02:59.9]} 2. c4 {[%clk 0:02:40.3]}
2... c6 {[%clk 0:03:00.5]} 3. cxd5 {[%clk 0:02:40.2]} 3... cxd5 {[%clk
0:03:01.4]} 4. Bg5 {[%clk 0:02:40.5]} 4... h6 {[%clk 0:02:58.2]} 5. Bh4 {[%clk
0:02:39.9]} 5... Qb6 {[%clk 0:02:57.9]} 6. Qd2 {[%clk 0:02:39.2]} 6... Bf5
{[%clk 0:02:55.1]} 7. Nc3 {[%clk 0:02:38.8]} 7... e6 {[%clk 0:02:54.4]} 8. e3
{[%clk 0:02:38.4]} 8... Nc6 {[%clk 0:02:53.1]} 9. Nf3 {[%clk 0:02:37.9]} 9...
Be7 {[%clk 0:02:48.7]} 10. Bxe7 {[%clk 0:02:36.3]} 10... Ngxe7 {[%clk
0:02:49.3]} 11. Be2 {[%clk 0:02:36.4]} 11... O-O {[%clk 0:02:49.3]} 12. O-O
{[%clk 0:02:35.8]} 12... Rfc8 {[%clk 0:02:49.5]} 13. Rfc1 {[%clk 0:02:35.6]}
13... a6 {[%clk 0:02:34.3]} 14. Na4 {[%clk 0:02:34.3]} 14... Qd8 {[%clk
0:02:31]} 15. Nc5 {[%clk 0:02:33.2]} 15... Rc7 {[%clk 0:02:25.1]} 16. Rc3 {[%clk
0:02:32.1]} 16... Nc8 {[%clk 0:02:18.6]} 17. Rac1 {[%clk 0:02:26.7]} 17... Qe8
{[%clk 0:01:48.7]} 18. Nxb7 {[%clk 0:02:13.5]} 18... Rxb7 {[%clk 0:01:39.7]} 19.
Rxc6 {[%clk 0:02:13.5]} 19... Nb6 {[%clk 0:01:36.8]} 20. Ne5 {[%clk 0:01:43.9]}
20... f6 {[%clk 0:01:27.3]} 21. Qa5 {[%clk 0:01:38.4]} 21... fxe5 {[%clk
0:01:12.6]} 22. Rxb6 {[%clk 0:01:32]} 22... Qd8 {[%clk 0:01:11.8]} 23. Rcc6
{[%clk 0:01:21.3]} 23... Rab8 {[%clk 0:00:35.6]} 24. Rxb7 {[%clk 0:01:16.5]}
24... Qxa5 {[%clk 0:00:35.3]} 25. Rxb8+ {[%clk 0:01:14.8]} 25... Kh7 {[%clk
0:00:35.9]} 26. Rbc8 {[%clk 0:01:00.3]} 26... exd4 {[%clk 0:00:30]} 27. exd4
{[%clk 0:00:58.4]} 27... Qxa2 {[%clk 0:00:29.8]} 28. Bxa6 {[%clk 0:00:45.6]}
28... Qxb2 {[%clk 0:00:28.4]} 29. h3 {[%clk 0:00:42.8]} 29... Qxd4 {[%clk
0:00:27.6]} 30. Rc3 {[%clk 0:00:33.8]} 30... Qd1+ {[%clk 0:00:21.3]} 31. Bf1
{[%clk 0:00:33.3]} 31... Qd2 {[%clk 0:00:19.9]} 32. Rc1 {[%clk 0:00:29]} 32...
d4 {[%clk 0:00:19.3]} 33. R1c4 {[%clk 0:00:23.2]} 33... Bd3 {[%clk 0:00:13.4]}
34. Rxd4 {[%clk 0:00:21.9]} 34... Qc1 {[%clk 0:00:03.2]} 35. Rxc1 {[%clk
0:00:20.8]} 1-0